Cogmind - Beta 15 @@@ ROGUE MODE // 2025.06.10 @ 00:16:48 Player: CL-1C0 Result: Self-destructed Performance ------------- Evolutions (4) 2000 Regions Visited (7) 1400 Robots Destroyed (5) 25 Value Destroyed (55) 55 Prototype IDs (1) 20 Alien Tech Used (0) 0 Bonus (500) 500 TOTAL SCORE: 4000 Bonus ------- Entered DSFs 500 Cogmind --------- Core Integrity 840/850 Matter 190/300 Energy 140/140 System Corruption 0% Temperature Cool (0) Movement Flying (25) Location -6/Lower Caves Parts ------- > --- POWER (2) -------- Light Deuterium Engine > --- PROPULSION (7) --- Flight Unit Flight Unit Improved VTOL Module Improved VTOL Module Improved VTOL Module > --- UTILITY (4) ------ Medium Storage Unit IFF Parser Advanced Terrain Scanner Terrain Scan Processor > --- WEAPON (2) ------- Light Assault Rifle Scythe > --- INVENTORY (10) --- Light Fission Core Improved Trap Scanner Improved Sensor Array Improved Light Armor Plating Improved System Shield Improved System Shield Improved Grenade Launcher Improved Grenade Launcher Great Maul Peak State ------------ > --- POWER ------------ Light Deuterium Engine Light Nuclear Core > --- PROPULSION ------- Flight Unit Flight Unit Flight Unit Improved VTOL Module Improved VTOL Module Improved VTOL Module > --- UTILITY ---------- Medium Storage Unit IFF Parser Advanced Terrain Scanner Terrain Scan Processor > --- WEAPON ----------- Light Assault Rifle Scythe > --- INVENTORY -------- Light Fission Core Improved VTOL Module Improved Trap Scanner Improved Sensor Array Improved Light Armor Plating Improved System Shield Improved System Shield Improved Grenade Launcher Improved Grenade Launcher Great Maul [Rating: 41] Favorites ----------- Power Light Nuclear Core Engine Light Deuterium Engine Power Core Light Nuclear Core Propulsion Flight Unit Treads Light Treads Flight Unit Flight Unit Utility Medium Storage Unit Device Improved Terrain Scanner Storage Medium Storage Unit Processor Terrain Scan Processor Weapon Light Assault Rifle Ballistic Gun Light Assault Rifle Launcher Improved Grenade Launcher Impact Weapon Great Maul Slashing Weapon Scythe Build | -11 -10 -9 -8 -7 -7 -6 -6 ------- Run | Yrd Mat Mat Mat Fac DSF Fac Low Slots Evolved 8 | . . 2 2 2 . 2 . Power 1 | . . . . . . 1 . Propulsion 5 | . . 2 2 1 . . . Utility 2 | . . . . 1 . 1 . Weapon . | . . . . . . . . Parts Attached 22 | 1 1 6 5 1 . 8 . Power 2 | . . 1 . . . 1 . Engine 1 | . . . . . . 1 . Core 1 | . . 1 . . . . . Reactor . | . . . . . . . . Propulsion 8 | 1 . 4 3 . . . . Treads 1 | 1 . . . . . . . Leg . | . . . . . . . . Wheel . | . . . . . . . . Hover . | . . . . . . . . Flight 7 | . . 4 3 . . . . Utility 8 | . . . 2 1 . 5 . Device 5 | . . . 1 . . 4 . Storage 1 | . . . 1 . . . . Processor 2 | . . . . 1 . 1 . Hackware . | . . . . . . . . Protection . | . . . . . . . . Artifact . | . . . . . . . . Weapon 4 | . 1 1 . . . 2 . Energy Gun . | . . . . . . . . Energy Cannon . | . . . . . . . . Ballistic Gun 1 | . 1 . . . . . . Ballistic Cannon . | . . . . . . . . Launcher 1 | . . . . . . 1 . Special Weapon . | . . . . . . . . Impact Weapon 1 | . . 1 . . . . . Slashing Weapon 1 | . . . . . . 1 . Piercing Weapon . | . . . . . . . . Special Melee Weapon . | . . . . . . . . Unidentified Prototypes 1 | . . . 1 . . . . Parts Lost 3 | . 1 . . . 1 1 . Power . | . . . . . . . . Propulsion 3 | . 1 . . . 1 1 . Utility . | . . . . . . . . Weapon . | . . . . . . . . Highest Loss Streak 1 | . 1 . . . 1 1 . To Critical Strikes . | . . . . . . . . Average Backups 5 | 4 1 1 5 6 7 9 . Power 1 | 1 . . 1 2 2 1 . Propulsion 1 | 2 1 1 2 1 1 . . Utility 2 | . . . 1 2 2 4 . Weapon 1 | 1 . . . 1 2 3 . Tool/Special . | . . . . . . . . Unused Backups 9 | . . 1 . . . 3 5 Power 2 | . . . . . . 1 1 Propulsion 1 | . . . . . . 1 . Utility 4 | . . . . . . 1 3 Weapon 2 | . . 1 . . . . 1 Tool/Special . | . . . . . . . . Average Slot Usage (%) 75 | . 21 55 94 97 95 91 . Engine 2 | . . . . . . 5 . Core 4 | . . 1 9 7 7 5 . Treads 1 | . 12 . . . . . . Flight 37 | . . 41 53 53 48 39 . Device 5 | . . . 6 7 7 9 . Storage 4 | . . . 7 7 7 6 . Processor 4 | . . . . 4 7 9 . Ballistic Gun 7 | . 8 11 9 7 7 6 . Impact Weapon 2 | . . 2 9 7 7 . . Slashing Weapon 2 | . . . . . . 5 . Peak Build Rating 41 | 1 2 12 28 30 31 41 . Average Rating 24 | 1 1 5 26 29 30 38 . On Entrance 18 | 6 1 1 12 28 30 30 37 Naked Turns . | . . . . . . . . Heaviest Build 27 | . 1 10 21 21 21 27 . Greatest Support 31 | 3 3 16 27 31 31 27 . Greatest Overweight (x) . | . . . . . . . . Average Overweight (x) . | . . . . . . . . Largest Inventory Capacity 10 | 5 5 5 10 10 10 10 . Average Capacity 8 | 5 5 5 9 10 10 10 . Most Carried 10 | 4 4 5 8 7 8 10 . Average Carried 6 | 2 2 1 5 6 7 9 . Final Capacity 10 | 5 5 5 10 10 10 10 10 Final Carried 9 | . 4 5 8 6 8 9 9 Class Distribution -------------------- 63% | Scavenger-Sprinter 19% | Scavenger-Scout 13% | Mutant 3% | Scavenger-Mutant Dominant Class ---------------- Mutant | -10/Materials Scavenger-Sprinter | -9/Materials Scavenger-Sprinter | -8/Materials Scavenger-Sprinter | -7/Factory Scavenger-Sprinter | -7/DSF Scavenger-Sprinter | -6/Factory Scavenger-Sprinter | -6/Lower Caves Resources | -11 -10 -9 -8 -7 -7 -6 -6 ----------- Run | Yrd Mat Mat Mat Fac DSF Fac Low Matter Collected 372 | 200 25 16 94 . . 37 . Remotely . | . . . . . . . . Salvage Created 136 | . 16 16 94 . . 10 . Parts 8 | . 2 1 2 . . 3 . Haulers Intercepted 1 | . . . 1 . . . . Recyclers Shooed 1 | . . . . . . 1 . Parts Field Recycled . | . . . . . . . . Retrieved Matter . | . . . . . . . . Parts Self-Destructed . | . . . . . . . . Prevented . | . . . . . . . . Kills | -11 -10 -9 -8 -7 -7 -6 -6 ------- Run | Yrd Mat Mat Mat Fac DSF Fac Low Combat Hostiles Destroyed 1 | . 1 . . . . . . Guns 1 | . 1 . . . . . . Classes Destroyed 5 | . 1 1 2 . . 1 . Worker 1 | . . . . . . 1 . Hauler 1 | . . . 1 . . . . Recycler 1 | . . . 1 . . . . Operator 1 | . . 1 . . . . . Swarmer 1 | . 1 . . . . . . Best Kill Streak 2 | . 1 1 2 . . 1 . Combat Bots Only 1 | . 1 . . . . . . Max Kills in Single Turn 1 | . 1 1 1 . . 1 . Gunslinging . | . . . . . . . . Exploded . | . . . . . . . . Melee . | . . . . . . . . Uniques/NPCs Destroyed . | . . . . . . . . Combat | -11 -10 -9 -8 -7 -7 -6 -6 -------- Run | Yrd Mat Mat Mat Fac DSF Fac Low Hostile Shots Fired 81 | . 42 5 13 . 7 14 . Missed 41 | . 17 4 6 . 4 10 . Hits 40 | . 25 1 7 . 3 4 . Projectile 40 | . 25 1 7 . 3 4 . Critical Strikes 1 | . . . 1 . . . . Damage Taken 485 | . 249 11 103 . 56 66 . Core 197 | . 90 . 58 . 39 10 . Absorbed by Shields . | . . . . . . . . Core Remaining (%) 89 | 100 64 100 89 . 94 . . Volleys Fired 23 | . 11 10 . . . 2 . Largest 1 | . 1 1 . . . 1 . Hottest 36 | . 20 20 . . . 36 . Shots Fired 23 | . 11 10 . . . 2 . Gun 21 | . 11 10 . . . . . Cannon . | . . . . . . . . Launcher 2 | . . . . . . 2 . Special . | . . . . . . . . Kinetic 21 | . 11 10 . . . . . Thermal . | . . . . . . . . Explosive 2 | . . . . . . 2 . Electromagnetic . | . . . . . . . . Robot Hit Streak 4 | . 4 4 . . . . . Robot Miss Streak 2 | . 2 2 . . . . . Penetration Max . | . . . . . . . . Secondary Targets . | . . . . . . . . Shots Hit Robots 18 | . 8 4 2 . . 4 . Core Hits 6 | . 2 3 . . . 1 . Critical Kills . | . . . . . . . . Critical Parts Destroyed 1 | . . . 1 . . . . Critical Strikes 2 | . . . 1 . . 1 . Smash 1 | . . . 1 . . . . Sever 1 | . . . . . . 1 . Melee Attacks 39 | . . . 8 1 3 27 . Impact 12 | . . . 8 1 3 . . Slashing 27 | . . . . . . 27 . Piercing . | . . . . . . . . Sneak Attacks 5 | . . . 2 . . 3 . Combat Hostiles . | . . . . . . . . Follow-up Attacks . | . . . . . . . . Damage Inflicted 582 | . 72 44 227 . . 239 . Guns 116 | . 72 44 . . . . . Cannons . | . . . . . . . . Explosions . | . . . . . . . . Melee 466 | . . . 227 . . 239 . Ramming . | . . . . . . . . Kinetic 116 | . 72 44 . . . . . Thermal . | . . . . . . . . Explosive . | . . . . . . . . Electromagnetic . | . . . . . . . . Impact 227 | . . . 227 . . . . Slashing 239 | . . . . . . 239 . Piercing . | . . . . . . . . Highest Corruption . | . . . . . . . . Average Corruption . | . . . . . . . . Corruption Purged . | . . . . . . . . Corruption Blocked . | . . . . . . . . Overload Shots . | . . . . . . . . Overflow Damage 259 | . . . 207 . . 52 . Projectiles . | . . . . . . . . Explosions . | . . . . . . . . Melee 259 | . . . 207 . . 52 . Knockbacks . | . . . . . . . . Impact . | . . . . . . . . Kinetic . | . . . . . . . . Secondary . | . . . . . . . . Self-Inflicted Damage . | . . . . . . . . Shots . | . . . . . . . . Rammed . | . . . . . . . . Targets Rammed . | . . . . . . . . Kicked . | . . . . . . . . Crushed . | . . . . . . . . Highest Temperature 202 | . 7 4 66 67 . 202 . Average Temperature 45 | . 4 4 10 20 . 59 . Received Heat Transfer 189 | . 102 6 54 . . 27 . Siege Activations . | . . . . . . . . Martial Activations . | . . . . . . . . Shielding Activations . | . . . . . . . . Robots Disrupted . | . . . . . . . . Combat Hostiles . | . . . . . . . . Robots Corrupted 1 | . . . 1 . . . . Combat Hostiles . | . . . . . . . . Parts Fried 2 | . . . 2 . . . . Impact Corruptions 3 | . . . 3 . . . . Robots Melted . | . . . . . . . . Combat Hostiles . | . . . . . . . . Parts Melted . | . . . . . . . . Heat Transferred . | . . . . . . . . Parts Sabotaged . | . . . . . . . . Parts Stolen . | . . . . . . . . Parts Stripped . | . . . . . . . . Power Chain Reactions . | . . . . . . . . Alert | -11 -10 -9 -8 -7 -7 -6 -6 ------- Run | Yrd Mat Mat Mat Fac DSF Fac Low Maximum Alert Level . | . . . . . . . . Low Security (%) 100 | 100 100 100 100 100 100 100 . Level 1 . | . . . . . . . . Level 2 . | . . . . . . . . Level 3 . | . . . . . . . . Level 4 . | . . . . . . . . Level 5 . | . . . . . . . . High Security . | . . . . . . . . Max Security . | . . . . . . . . Peak Influence 57 | . 30 25 47 21 19 57 . Initial 21 | . . . . 21 11 9 . Average 12 | . 10 7 22 18 10 10 . Influence Increases 316 | . 40 35 77 6 18 140 . Destroy 0b10 Robot/C 20 | . 20 . . . . . . Destroy 0b10 Robot/NC 20 | . . 5 10 . . 5 . Destroy Leader 2 | . . . 2 . . . . Successful Hack 10 | . 5 . . 5 . . . Disable Machine 30 | . . . . . . 30 . Destroy Structure 39 | . . . 5 1 3 30 . Partial Spotted 60 | . 15 30 . . . 15 . Lose Combat Pursuer 135 | . . . 60 . 15 60 . Influence Decreases 281 | . 40 35 30 36 16 102 22 Entered New Map 64 | . . . . 26 6 10 22 Time Decay 187 | . 30 35 30 10 . 82 . Lost Part 30 | . 10 . . . 10 10 . Squads Dispatched 10 | . 2 2 1 . . 5 . Investigation 5 | . 1 . 1 . . 3 . Extermination . | . . . . . . . . Reinforcement 5 | . 1 2 . . . 2 . Assault . | . . . . . . . . Garrison . | . . . . . . . . Intercept . | . . . . . . . . Searches Triggered . | . . . . . . . . Construction Impeded 1 | . . . . . . 1 . Haulers Reinforced 1 | . . . . . . 1 . Active Scanning Responses . | . . . . . . . . Cargo Convoy Interrupts . | . . . . . . . . Stealth | -11 -10 -9 -8 -7 -7 -6 -6 --------- Run | Yrd Mat Mat Mat Fac DSF Fac Low Distress Signals 3 | . . 2 1 . . . . Communications Jammed . | . . . . . . . . Distress Signals . | . . . . . . . . Times Spotted 41 | . 10 10 12 . 1 8 . Peak Tracking Total 9 | . 5 7 9 . 1 6 . Tactical Retreats 5 | . . . 3 . 1 1 . Traps | -11 -10 -9 -8 -7 -7 -6 -6 ------- Run | Yrd Mat Mat Mat Fac DSF Fac Low Traps Triggered 2 | . . . 1 . 1 . . Indirectly . | . . . . . . . . Trap Hack Attempts . | . . . . . . . . Triggered . | . . . . . . . . Disarmed . | . . . . . . . . Reprogrammed . | . . . . . . . . Reused . | . . . . . . . . Traps Extracted . | . . . . . . . . Installed . | . . . . . . . . Triggered . | . . . . . . . . Machines | -11 -10 -9 -8 -7 -7 -6 -6 ---------- Run | Yrd Mat Mat Mat Fac DSF Fac Low Machines Disabled 2 | . . . . . . 2 . Max in Single Turn 1 | . . . . . . 1 . Machines Repaired . | . . . . . . . . Machines Dismantled . | . . . . . . . . Machines Sabotaged . | . . . . . . . . Overloaded Fab Kills . | . . . . . . . . Hacking | -11 -10 -9 -8 -7 -7 -6 -6 --------- Run | Yrd Mat Mat Mat Fac DSF Fac Low Machines Accessed 11 | . 2 1 2 2 . 4 . Terminals 11 | . 2 1 2 2 . 4 . Fabricators . | . . . . . . . . Repair Stations . | . . . . . . . . Recycling Units . | . . . . . . . . Scanalyzers . | . . . . . . . . Garrison Access . | . . . . . . . . Total Hacks 29 | . 8 2 5 5 . 9 . Successful 4 | . 3 . . 1 . . . Failed 25 | . 5 2 5 4 . 9 . Catastrophic 5 | . . 1 1 1 . 2 . Database Lockouts . | . . . . . . . . Manual 7 | . 2 2 . 2 . 1 . Terminals 29 | . 8 2 5 5 . 9 . Fabricators . | . . . . . . . . Repair Stations . | . . . . . . . . Recycling Units . | . . . . . . . . Scanalyzers . | . . . . . . . . Garrison Access . | . . . . . . . . Terminal Hacks 4 | . 3 . . 1 . . . Open DSF 1 | . . . . 1 . . . Emergency Access Points 1 | . 1 . . . . . . Terminal Index 1 | . 1 . . . . . . Hauler Manifests 1 | . 1 . . . . . . Fabricator Hacks . | . . . . . . . . Repair Station Hacks . | . . . . . . . . Recycling Unit Hacks . | . . . . . . . . Scanalyzer . | . . . . . . . . Garrison Access Hacks . | . . . . . . . . Unauthorized Hacks . | . . . . . . . . Terminals . | . . . . . . . . Fabricators . | . . . . . . . . Repair Stations . | . . . . . . . . Recycling Units . | . . . . . . . . Scanalyzers . | . . . . . . . . Garrison Access . | . . . . . . . . Data Cores Recovered . | . . . . . . . . Used . | . . . . . . . . Hacking Detections 11 | . 2 1 2 2 . 4 . Full Trace Events 6 | . 2 . 1 . . 3 . Feedback Events . | . . . . . . . . Feedback Blocked . | . . . . . . . . Robot Schematics Acquired . | . . . . . . . . Robots Built . | . . . . . . . . Authchips . | . . . . . . . . Time . | . . . . . . . . Total Robot Build Rating . | . . . . . . . . Part Schematics Acquired . | . . . . . . . . Parts Built . | . . . . . . . . Authchips . | . . . . . . . . Time . | . . . . . . . . Total Part Build Rating . | . . . . . . . . Parts Repaired . | . . . . . . . . Time . | . . . . . . . . Parts Recycled . | . . . . . . . . Recycled Matter . | . . . . . . . . Retrieved Matter . | . . . . . . . . Retrieved Components . | . . . . . . . . Parts Scanalyzed . | . . . . . . . . Part Schematics Acquired . | . . . . . . . . Parts Damaged . | . . . . . . . . Bothacking | -11 -10 -9 -8 -7 -7 -6 -6 ------------ Run | Yrd Mat Mat Mat Fac DSF Fac Low Used RIF Installer . | . . . . . . . . Robots Hacked . | . . . . . . . . Non-combat . | . . . . . . . . Combat . | . . . . . . . . Robot Hacks Applied . | . . . . . . . . Relay Couplers Released . | . . . . . . . . Fabnet Peak Effective % . | . . . . . . . . Robots Rewired . | . . . . . . . . Allies Hacked . | . . . . . . . . Hacks Repelled . | . . . . . . . . Allies | -11 -10 -9 -8 -7 -7 -6 -6 -------- Run | Yrd Mat Mat Mat Fac DSF Fac Low Total Allies . | . . . . . . . . Largest Group . | . . . . . . . . Highest-Rated Group . | . . . . . . . . Highest-Rated Ally . | . . . . . . . . Total Orders . | . . . . . . . . Ally Attacks . | . . . . . . . . Total Damage . | . . . . . . . . Kills . | . . . . . . . . Allies Corrupted . | . . . . . . . . Allies Melted . | . . . . . . . . Intel | -11 -10 -9 -8 -7 -7 -6 -6 ------- Run | Yrd Mat Mat Mat Fac DSF Fac Low Active Infowar (turns) 382 | . . . 72 26 41 243 . Sensors 8 | . . . . . . 8 . IFF 89 | . . . . . . 89 . Terrain 376 | . . . 72 26 41 237 . Traps 36 | . . . . . . 36 . Robot Analysis Total . | . . . . . . . . Derelict Logs Recovered . | . . . . . . . . Drone Launches . | . . . . . . . . Drone Recoveries . | . . . . . . . . Exploration | -11 -10 -9 -8 -7 -7 -6 -6 ------------- Run | Yrd Mat Mat Mat Fac DSF Fac Low Turns Passed 598 | 4 88 101 95 26 41 243 . Spaces Moved 1256 | 1 123 195 229 73 55 580 . Core 131 | 1 123 7 . . . . . Treads . | . . . . . . . . Legs . | . . . . . . . . Wheels . | . . . . . . . . Hover . | . . . . . . . . Flight 1125 | . . 188 229 73 55 580 . Fastest Speed 19 | 50 50 31 22 19 19 22 . Average Speed 27 | 50 50 34 24 21 20 22 . Slowest Speed 50 | 50 50 50 25 22 22 25 . Overloaded Moves . | . . . . . . . . Propulsion Burnouts . | . . . . . . . . Robots Hopped 11 | . . 4 4 . . 3 . Potential Cave-ins 2 | . . . . . . 2 . Cave-ins Triggered . | . . . . . . . . Exploration Rate (%) 25 | 2 28 30 37 5 81 22 2 Regions Visited 7 Branch Regions 1 Pre-discovered Areas . | . . . . . . . . Known Exits Taken 1 | . . . . 1 . . . Unknown Exits Taken 5 | 1 1 1 1 . . 1 . Scrap Searched . | . . . . . . . . Spaces Dug 39 | . . . 5 1 3 30 . Terrain Destroyed 52 | . . . 5 1 3 43 . Melee 29 | . . . 5 1 3 20 . Projectile . | . . . . . . . . AOE 23 | . . . . . . 23 . Terrain Rammed . | . . . . . . . . Walls Destroyed . | . . . . . . . . Machines Disabled . | . . . . . . . . Actions | -11 -10 -9 -8 -7 -7 -6 -6 --------- Run | Yrd Mat Mat Mat Fac DSF Fac Low Total 1408 | 5 139 214 246 80 77 647 . Wait 34 | . 1 1 3 5 3 21 . Move 1227 | . 122 186 220 72 54 573 . Hop 11 | . . 4 4 . . 3 . Pick Up 23 | . 4 6 6 . 2 5 . Fast Attach 6 | . 1 2 1 . . 2 . Attach 11 | 1 . 4 3 2 . 1 . Detach . | . . . . . . . . Swap 8 | . . . 1 . . 7 . Drop 11 | 4 . 1 . . . 6 . Fire 23 | . 11 10 . . . 2 . Melee 39 | . . . 8 1 3 27 . Ram . | . . . . . . . . Kick . | . . . . . . . . Crush . | . . . . . . . . Escape Stasis 15 | . . . . . 15 . . Rewire . | . . . . . . . . Trap . | . . . . . . . . Miscellaneous . | . . . . . . . . Route ------- -11/Scrapyard -10/Materials -9/Materials -8/Materials -7/Factory -7/DSF -6/Factory (discovered 3 exits: [*Low x2] / [*Ext]) -6/Lower Caves History --------- Turn | Location | Event 1 | -11/Scrapyard | Released all parts (6) 5 | -11/Scrapyard | Discovered new exit (range 0) 5 | -11/Scrapyard | Entered Materials 77 | -10/Materials | Discovered new exit (range 16) 93 | -10/Materials | Entered another Materials area 93 | -9/Materials | Evolved 2 slots: Propulsion x2 182 | -9/Materials | Discovered new exit (range 15) 194 | -9/Materials | Entered another Materials area 194 | -8/Materials | Evolved 2 slots: Propulsion x2 288 | -8/Materials | Discovered new exit (range 6) 289 | -8/Materials | Entered Factory 289 | -7/Factory | Evolved 2 slots: Propulsion x1, Utility x1 314 | -7/Factory | Identified exit to DSF 315 | -7/Factory | Entered DSF 338 | -7/DSF | Discovered new exit (range 10) 340 | -7/DSF | Additional patrols routed to DSF 356 | -7/DSF | Entered Factory 356 | -6/Factory | Evolved 2 slots: Power x1, Utility x1 506 | -6/Factory | Discovered new exit (range 16) 537 | -6/Factory | Discovered new exit (range 10) 585 | -6/Factory | Discovered new exit (range 14) 599 | -6/Factory | Entered Lower Caves 599 | -6/Lower Caves | Self-destructed Last Messages --------------- 00481_ K-01 Serf collects debris. 00506_ EXIT=FOUND 00508_ Discarded Imp. Signal Interpreter. 00510_ Acquired IFF Parser. 00524_ Connecting with Terminal... 00537_ EXIT=FOUND 00549_ TF Node disabled. 00552_ Dropped Faulty Imp. VTOL Module. 00575_ Connecting with Terminal... 00575_ ALERT: Suspicious activity at Terminal F012. Dispatching Investigation squad. 00584_ Sneak attack on A-15 Conveyor. 00584_ A-15 Conveyor calls for reinforcements. 00584_ ALERT: Hostile activity reported, dispatching reinforcements to area. 00585_ EXIT=FOUND 00586_ Flight Unit destroyed. 00586_ Dropped Lgt. Nuclear Core. LOCATION=UNKNOWN GOAL=ESCAPE Map ----- +----------------------------------------------------+ | ?????????????????????????????????????????????????? | | ?????????????????????????????????????????????????? | | ?????????????????????????????????????????????????? | | ?????????????????????????????????????????????????? | | ?????????????????????????????????????????????????? | | ?????????????????????????????????????????????????? | | ?????????????????????????????????????????????????? | | ?????????????????????????????????????????????????? | | ?????????????????????????????????????????????????? | | ?????????????????????????????????????????????????? | | ?????????????????????????????????????????????????? | | ?????????????????????????????????????????????????? | | ?????????????????????????????????????????????????? | | ?????????????????????????????????????????????????? | | ?????????????????????????????????????????????????? | | ?????????????????????????????????????????????????? | | ?????????????????????????????????????????????????? | | ?????????????????????????????????????????????????? | | ?????????????????????????????????????????????????? | | ?????????????????????????????????????????????????? | | ?????????????????????????????????????????????????? | | ???????????????????????##????? #?????????????????? | | ???????????????????????# ##?? #?????????????????? | | ???????????????????????# ## #?????????????????? | | ?????????????????####### ###???????????????? | | ???????????????# @ #??????????????? | | ???????????????# #???????????????? | | ???????????????# ########## ##???????????????? | | ???????????????????????????# #????????????????? | | ???????????????????????????? #????????????????? | | ????????????????????????????? #????????????????? | | ?????????????????????????????? #???????????????? | | ??????????????????????????????? #???????????????? | | ????????????????????????????????##???????????????? | | ?????????????????????????????????????????????????? | | ?????????????????????????????????????????????????? | | ?????????????????????????????????????????????????? | | ?????????????????????????????????????????????????? | | ?????????????????????????????????????????????????? | | ?????????????????????????????????????????????????? | | ?????????????????????????????????????????????????? | | ?????????????????????????????????????????????????? | | ?????????????????????????????????????????????????? | | ?????????????????????????????????????????????????? | | ?????????????????????????????????????????????????? | | ?????????????????????????????????????????????????? | | ?????????????????????????????????????????????????? | | ?????????????????????????????????????????????????? | | ?????????????????????????????????????????????????? | | ?????????????????????????????????????????????????? | +----------------------------------------------------+ Best States ------------- Heat Dissipation 37 Energy Generation 23 Energy Capacity 200 Matter Stores 299 Matter Capacity 300 Sight Range 16 Robot Scan Range 15 Terrain Scan Range 20 Terrain Scan Density 85 Evasion (%) 66 Recoil Reduction 1 Item Schematics ----------------- None Robot Schematics ------------------ None Fabricated ------------ Nothing Repaired ---------- Nothing Alien Tech Used ----------------- None Achievements -------------- None Challenges ------------ None Game ------ Seed DroneLaserThermoblaster Manual? 0 Play Time 00:17:37 Cumulative 530.3 hours Start 2025.06.09 @ 23:59:15 End 2025.06.10 @ 00:16:48 Sessions 1 Manual Loads 0 Difficulty Rogue Special Mode None Game No. 607 Rogue 607 Adventurer 0 Explorer 0 Win Type - Total 17 Types 11/0/5/1/0/0/0/0/0/0 Lore% 83 Gallery% 82 Achievement% 82 Wizard Run 0 Options --------- Layout 0 ASCII 0 Keyboard 0 Movement Numpad Keybinds 0 Fullscreen 1 Font 18/SmallcapsGlow Map View 76x50 Zoom Use 0% Tactical HUD 1 Map Filters NONE Filters NONE Steam 1 RUN: d6e0c29f-f214-48f9-bd58-e28525693b71